bitfinex/quotes_BTCUSD_20260310
["timestamp","ask_amount","ask_price","bid_price","bid_amount"]
[1773166738331,0.03,70339.0,70321.0,0.0025463]
[1773166738498,0.03,70337.0,70320.0,0.00562]
[1773166738700,0.07250804,70338.0,70315.0,0.02952234]
[1773166738905,0.07250804,70338.0,70318.0,0.0002]
[1773166739353,0.07090804,70338.0,70318.0,0.0002]
[1773166739660,0.0016,70337.0,70318.0,0.0002]
[1773166740249,0.03023,70350.0,70318.0,0.0002]
[1773166740463,0.03023,70350.0,70319.0,0.07110453]
[1773166740464,0.03,70346.0,70319.0,0.07110453]
[1773166740675,0.18544075,70369.0,70327.0,0.04453221]
[1773166740676,0.0016,70358.0,70327.0,0.04453221]
[1773166740839,0.07106602,70358.0,70328.0,0.04613221]
[1773166741041,0.26521428,70380.0,70325.0,0.00023]
[1773166741042,0.07127851,70375.0,70331.0,1.125005]
[1773166741234,0.07127851,70375.0,70334.0,0.04453221]
[1773166741430,0.03,70372.0,70334.0,0.04453221]
[1773166741655,0.10563581,70373.0,70331.0,0.00037419]
[1773166741656,0.03,70369.0,70331.0,0.00037419]
[1773166741860,0.03,70369.0,70335.0,0.0016]
[1773166741861,0.0016,70368.0,70335.0,0.0016]
[1773166742072,0.0016,70367.0,70335.0,0.0016]
[1773166742343,0.0016,70367.0,70331.0,0.00037419]
[1773166742541,0.03,70365.0,70337.0,0.07108634]
[1773166743087,0.03,70365.0,70335.0,0.07108634]
[1773166743265,0.03,70365.0,70336.0,0.04453221]
[1773166743861,0.0016,70364.0,70337.0,0.0016]
[1773166744409,0.00015,70393.0,70339.0,0.04453221]
[1773166744579,0.07105194,70372.0,70340.0,0.0710833]
[1773166744777,0.07105194,70372.0,70341.0,0.0016]
[1773166744978,0.07264896,70374.0,70341.0,0.04613221]
[1773166745350,0.00023,70375.0,70343.0,0.04453221]
[1773166745550,0.00023,70375.0,70340.0,0.26525466]
[1773166745551,0.07264071,70383.0,70350.0,0.00023]
[1773166745777,0.07264071,70383.0,70351.0,0.0016]
[1773166745986,0.19417136,70380.0,70350.0,0.00023]
[1773166746193,0.07264071,70383.0,70350.0,0.00023]
[1773166746407,0.03,70382.0,70351.0,0.0016]
[1773166746613,0.03,70378.0,70350.0,0.00023]
[1773166747067,0.03,70369.0,70336.0,0.0018]
[1773166747267,0.00023,70375.0,70325.0,0.00023]
[1773166747268,0.03,70359.0,70325.0,0.00023]
[1773166747512,0.03,70349.0,70328.0,1e-08]
[1773166747712,0.0016,70348.0,70325.0,1e-08]
[1773166748176,0.03,70339.0,70325.0,1e-08]
[1773166748375,0.03,70339.0,70318.0,0.0002]
[1773166748376,0.0016,70338.0,70318.0,1e-08]
[1773166748599,0.0016,70338.0,70299.0,0.07112385]
[1773166748600,0.0016,70338.0,70304.0,1e-08]
[1773166748601,0.03,70329.0,70304.0,1e-08]
[1773166748808,0.00023,70325.0,70295.0,0.0016]
[1773166748954,0.00427744,70320.0,70291.0,0.07039782]
[1773166749158,0.00427744,70320.0,70279.0,0.07683849]
[1773166749159,0.03,70309.0,70279.0,0.07683849]
[1773166749365,0.03,70309.0,70262.0,0.04453221]
[1773166749366,0.11033572,70289.0,70253.0,0.07180049]
[1773166749538,0.0016,70288.0,70253.0,0.07180049]
[1773166749937,0.0016,70287.0,70253.0,0.07180049]
[1773166750146,0.0016,70286.0,70253.0,0.07180049]
[1773166750725,0.03,70284.0,70253.0,0.07180049]
[1773166751267,0.00023,70300.0,70257.0,0.04453221]
[1773166751476,0.13536085,70318.0,70279.0,0.04453221]
[1773166751477,0.07110661,70317.0,70279.0,0.04453221]
[1773166751674,0.0316,70316.0,70282.0,0.773925]
[1773166751896,0.0016,70317.0,70282.0,0.04453221]
[1773166752097,0.07108432,70339.0,70301.0,0.381618]
[1773166752314,0.0016,70338.0,70302.0,0.04613221]
[1773166752686,0.03,70336.0,70302.0,0.11576614]
[1773166752889,0.03,70336.0,70303.0,0.04613221]
[1773166753302,0.03,70336.0,70304.0,0.502072]
[1773166753503,0.03,70336.0,70303.0,0.0016]
[1773166753504,0.0710634,70360.0,70307.0,0.04453221]
[1773166753821,0.00022001,70365.0,70302.0,0.07123393]
[1773166753822,0.07669615,70348.0,70311.0,0.04453221]
[1773166754063,0.07669615,70348.0,70315.0,0.04453221]
[1773166754273,0.07669603,70348.0,70303.0,0.280617]
[1773166754476,0.19417136,70340.0,70304.0,0.0016]
[1773166754695,0.19417136,70340.0,70302.0,0.00111273]
[1773166754696,0.07108533,70338.0,70302.0,0.00111273]
[1773166754890,0.03,70337.0,70305.0,0.0016]
[1773166755116,0.07108533,70338.0,70305.0,0.0016]
[1773166755117,0.03,70329.0,70305.0,0.0016]
[1773166755246,0.0016,70328.0,70305.0,0.0016]
[1773166755824,0.0016,70327.0,70305.0,0.0016]
[1773166755957,0.03,70319.0,70302.0,0.00011273]
[1773166756160,0.03,70309.0,70292.0,1e-08]
[1773166756501,0.03,70309.0,70255.0,0.0002]
[1773166756502,0.0016,70308.0,70275.0,0.07204777]
[1773166756649,0.03,70306.0,70277.0,0.07114703]
[1773166756848,0.03,70299.0,70276.0,0.0016]
[1773166757044,0.03,70299.0,70277.0,0.0016]
[1773166757310,0.03,70299.0,70275.0,0.0008993]
[1773166757311,0.0316,70299.0,70275.0,0.0008993]
[1773166757495,0.03,70289.0,70275.0,0.0008993]
[1773166758286,0.0016,70288.0,70275.0,1e-08]
[1773166758790,0.03,70286.0,70275.0,1e-08]
[1773166758991,0.07113452,70290.0,70275.0,1e-08]
[1773166759218,0.07113452,70290.0,70265.0,0.19152697]
[1773166759219,0.26530588,70290.0,70261.0,0.01145771]
[1773166759470,0.26530588,70290.0,70258.0,0.0016]
[1773166759687,0.26530588,70290.0,70255.0,0.0002]
[1773166759688,0.07113452,70290.0,70255.0,0.0002]
[1773166759836,0.19417136,70280.0,70255.0,0.0002]
[1773166760035,0.03,70279.0,70255.0,0.0002]
[1773166760238,0.0016,70278.0,70255.0,0.0002]
[1773166760642,0.0016,70278.0,70256.0,0.07116829]
[1773166760850,0.03,70277.0,70255.0,0.0002]
[1773166761046,0.03,70277.0,70256.0,0.0016]
[1773166761212,0.03,70277.0,70255.0,0.0002]
[1773166761412,0.03,70277.0,70264.0,0.0002]
[1773166761969,0.03,70277.0,70256.0,0.0002]
[1773166761970,0.0016,70276.0,70256.0,0.0002]
[1773166762128,0.0016,70276.0,70236.0,0.07894592]
[1773166762129,0.03,70269.0,70236.0,0.07894592]
[1773166762504,0.03,70269.0,70249.0,0.0002]
[1773166762734,0.03,70267.0,70249.0,0.0002]
[1773166762877,0.0316,70267.0,70249.0,0.0002]
[1773166763271,0.0316,70267.0,70217.0,0.07120782]
[1773166763272,0.03759013,70266.0,70217.0,0.07120782]
[1773166763469,0.03,70248.0,70217.0,0.20514884]
[1773166763666,0.0016,70247.0,70217.0,0.20514884]
[1773166763866,0.0016,70247.0,70219.0,0.0388778]
[1773166763867,0.00011192,70247.0,70219.0,0.0388778]
[1773166764076,0.00011192,70247.0,70221.0,0.0388778]
[1773166764474,0.00011192,70247.0,70222.0,0.0016]
[1773166764684,0.00023,70250.0,70222.0,0.0016]
[1773166764685,0.00023,70250.0,70224.0,0.0388778]
[1773166764897,0.53595323,70290.0,70224.0,0.0388778]
[1773166764898,0.07115462,70270.0,70228.0,1.471324]
[1773166765163,0.07115462,70270.0,70240.0,0.69718]
[1773166765375,0.07114861,70276.0,70237.0,0.20514884]
[1773166765376,0.07115019,70274.0,70243.0,0.0388778]
[1773166765676,0.07138006,70275.0,70241.0,0.0016]
[1773166765891,0.00023,70275.0,70251.0,0.0388778]
[1773166766101,0.00023,70275.0,70243.0,0.0388778]
[1773166766316,0.03,70274.0,70247.0,0.0388778]
[1773166766517,0.03,70274.0,70248.0,0.419273]
[1773166766687,0.03,70274.0,70249.0,0.0016]
[1773166766866,0.03,70272.0,70250.0,0.07117437]
[1773166767067,0.03011277,70272.0,70250.0,0.07117437]
[1773166767290,0.03011277,70272.0,70241.0,0.07118338]
[1773166767511,0.06759013,70269.0,70225.0,0.00023]
[1773166767751,0.03,70269.0,70236.0,0.00722]
[1773166768225,0.03,70259.0,70236.0,0.00562]
[1773166768523,0.0016,70258.0,70236.0,0.00562]
[1773166768926,0.03,70259.0,70236.0,0.00562]
[1773166768927,0.0016,70257.0,70236.0,0.00562]
[1773166769226,0.03,70255.0,70238.0,0.0002]
[1773166769972,0.0016,70254.0,70238.0,0.0002]
[1773166770533,0.0016,70254.0,70219.0,0.07120576]
[1773166770534,0.03759013,70247.0,70190.0,0.0016]
[1773166770708,0.03759013,70247.0,70208.0,0.07683621]
[1773166770709,0.03741284,70247.0,70208.0,0.07683621]
[1773166770906,0.03741284,70247.0,70209.0,0.0016]
[1773166771246,0.03,70245.0,70210.0,0.07121492]
[1773166771813,0.03,70245.0,70211.0,0.0016]
[1773166772236,0.03,70245.0,70183.0,0.07124232]
[1773166772237,0.19450633,70221.0,70183.0,0.07124232]
[1773166772589,0.0316,70220.0,70186.0,0.936558]
[1773166772762,0.0316,70220.0,70188.0,0.147366]
[1773166772995,0.0316,70220.0,70183.0,0.07124232]
[1773166773113,0.0316,70220.0,70189.0,0.0016]
[1773166773114,0.03,70218.0,70189.0,0.0016]
[1773166773315,0.03,70218.0,70191.0,0.0388778]
[1773166773725,0.03,70218.0,70192.0,0.0016]
[1773166774125,0.07143026,70225.0,70195.0,0.767866]
[1773166774400,0.07143026,70225.0,70195.0,0.00037565]
[1773166774401,0.07142979,70225.0,70195.0,0.00037565]
[1773166774703,0.07125251,70225.0,70197.0,0.134545]
[1773166774859,0.07125251,70225.0,70195.0,0.00037565]
[1773166775064,0.03005272,70225.0,70196.0,0.07282912]
[1773166775265,0.07119363,70231.0,70201.0,0.20514884]
[1773166775464,0.07118469,70240.0,70205.0,0.0388778]
[1773166775808,0.07118469,70240.0,70201.0,0.20514884]
[1773166775809,0.07118349,70241.0,70211.0,0.0388778]
[1773166776338,0.03,70240.0,70212.0,0.00156]
[1773166776802,0.00757696,70239.0,70215.0,0.7323458]
[1773166777032,0.00757696,70239.0,70212.0,0.00156]
[1773166777033,0.07117539,70249.0,70218.0,1.843034]
[1773166777250,0.07140539,70250.0,70226.0,0.0388778]
[1773166777251,0.0711753,70250.0,70226.0,0.0388778]
[1773166777760,0.071172,70253.0,70229.0,0.0388778]
[1773166777951,0.00022001,70240.0,70229.0,0.0388778]
[1773166778194,0.00022001,70240.0,70230.0,0.00156]
[1773166778410,0.03,70252.0,70231.0,0.00156]
[1773166778837,0.0711711,70254.0,70232.0,0.20514884]
[1773166779161,0.07116206,70263.0,70235.0,0.449845]
[1773166779367,0.03,70262.0,70236.0,0.43299]
[1773166779560,0.03,70262.0,70236.0,0.327913]
[1773166779788,0.03,70262.0,70236.0,0.213563]
[1773166780001,0.03,70262.0,70235.0,0.0388778]
[1773166780002,0.03,70262.0,70238.0,0.266011]
[1773166780242,0.03,70262.0,70239.0,0.0388778]
[1773166780446,0.03,70261.0,70240.0,0.1414]
[1773166780673,0.00562,70264.0,70243.0,0.0388778]
[1773166780873,0.00562,70264.0,70244.0,1.500887]
[1773166781044,0.07269809,70286.0,70243.0,0.0388778]
[1773166781045,0.07113395,70290.0,70243.0,0.0388778]
[1773166781257,0.07114245,70282.0,70248.0,0.0388778]
[1773166781430,0.03,70281.0,70250.0,0.00023]
[1773166781611,0.03,70281.0,70251.0,0.00156]
[1773166781995,0.03,70281.0,70250.0,0.00023]
[1773166782188,0.03,70281.0,70252.0,0.00156]
[1773166782365,0.10113825,70286.0,70255.0,1.541043]
[1773166782567,0.10113825,70286.0,70258.0,0.0388778]
[1773166782568,0.03,70284.0,70258.0,0.0388778]
[1773166782771,0.00011715,70275.0,70262.0,0.0388778]
[1773166783084,0.11030581,70319.0,70261.0,1.88584684]
[1773166783085,0.00023,70300.0,70266.0,0.174846]
[1773166783285,0.00023,70300.0,70268.0,0.07115614]
[1773166783286,0.07112476,70299.0,70268.0,0.07115614]
[1773166783505,0.07112476,70299.0,70266.0,0.07115724]
[1773166783732,0.07112476,70299.0,70269.0,0.00156]
[1773166783733,0.03,70298.0,70269.0,0.00156]
[1773166784397,0.03,70298.0,70271.0,0.0388778]
[1773166785033,0.00022001,70289.0,70272.0,0.00156]
[1773166785307,0.0713557,70289.0,70272.0,0.0727113]
[1773166785505,0.07112476,70299.0,70272.0,0.0727113]
[1773166785506,0.07134785,70296.0,70272.0,0.0727113]
[1773166785707,0.07134795,70296.0,70272.0,0.0727113]
[1773166785846,0.00022001,70296.0,70273.0,0.0388778]
[1773166786049,0.07111997,70304.0,70273.0,0.0388778]
[1773166786266,0.07110656,70317.0,70277.0,0.127267]
[1773166786468,0.03,70316.0,70276.0,0.233056]
[1773166786670,0.03,70316.0,70278.0,0.558951]
[1773166786967,0.03759013,70315.0,70275.0,0.00023]
[1773166787281,0.03759013,70315.0,70200.0,0.00023]
[1773166787282,0.03,70297.0,70261.0,0.20514884]
[1773166787481,0.03,70297.0,70246.0,0.15976]
[1773166787482,0.03,70297.0,70265.0,0.00156]
[1773166787887,0.03,70297.0,70250.0,0.00023]
[1773166788085,0.07268577,70298.0,70254.0,0.00156]
[1773166788086,0.03,70279.0,70254.0,0.00156]
[1773166788433,0.00156,70278.0,70254.0,0.00156]
[1773166788778,0.00156,70278.0,70250.0,0.00023]
[1773166789046,0.00156,70278.0,70251.0,0.00156]
[1773166789227,0.03,70276.0,70250.0,0.00023]
[1773166789431,0.03,70276.0,70251.0,0.00156]
[1773166789432,0.03156,70276.0,70251.0,0.00156]
[1773166789831,0.03156,70276.0,70252.0,0.00156]
[1773166790356,0.03156,70276.0,70253.0,0.00048]
[1773166790533,0.031,70276.0,70253.0,0.00048]
[1773166790752,0.03,70275.0,70253.0,0.03469428]
[1773166791154,0.001,70276.0,70253.0,0.03469428]
[1773166791355,0.00011268,70279.0,70256.0,0.268634]
[1773166791356,0.07125795,70279.0,70256.0,0.268634]
[1773166791552,0.07113488,70289.0,70257.0,0.855275]
[1773166791705,0.03,70288.0,70258.0,0.654506]
[1773166791907,0.03,70288.0,70259.0,0.00156]
[1773166792110,0.03,70288.0,70257.0,0.03432696]
[1773166792321,0.03,70288.0,70258.0,0.00156]
[1773166792526,0.03,70286.0,70259.0,0.00156]
[1773166792720,0.03,70286.0,70257.0,0.00011268]
[1773166792967,0.00023,70275.0,70237.0,0.07118755]
[1773166793193,0.00034271,70275.0,70243.0,0.0002]
[1773166793390,0.03,70273.0,70243.0,0.0002]
[1773166793594,0.07115006,70274.0,70236.0,0.00582]
[1773166793595,0.03,70269.0,70236.0,0.00582]
[1773166793845,0.00156,70268.0,70237.0,0.00156]
[1773166794043,0.00562,70264.0,70200.0,0.00023]
[1773166794263,0.03,70249.0,70222.0,0.00156]
[1773166794457,0.03156,70249.0,70226.0,0.00156]
[1773166795342,0.03,70251.0,70226.0,0.00156]
[1773166795514,0.03,70249.0,70227.0,0.07119768]
[1773166796392,0.07117032,70254.0,70228.0,0.293033]
[1773166796690,0.03,70253.0,70227.0,0.07119768]
[1773166796901,0.03,70253.0,70228.0,0.572906]
[1773166797064,0.03,70253.0,70229.0,0.573134]
[1773166797269,0.07678087,70264.0,70232.0,0.19522141]
[1773166797460,0.00562,70264.0,70236.0,0.03421428]
[1773166797660,0.03,70263.0,70237.0,0.00156]
[1773166797863,0.03,70263.0,70238.0,0.00156]
[1773166798042,0.03,70263.0,70236.0,0.03421428]
[1773166798246,0.03,70263.0,70238.0,0.437045]
[1773166798464,0.03,70263.0,70238.0,0.249538]
[1773166798669,0.03,70263.0,70239.0,0.00156]
[1773166798899,0.03,70262.0,70239.0,0.00156]
[1773166799089,0.07115362,70271.0,70242.0,1.009469]
[1773166799090,0.07115533,70269.0,70242.0,1.009469]
[1773166799296,0.07115533,70269.0,70242.0,0.901988]
[1773166799496,0.07115006,70274.0,70244.0,0.07118045]
[1773166799901,0.07115006,70274.0,70245.0,0.00156]
[1773166800230,0.03,70273.0,70244.0,0.07118045]
[1773166800358,0.03,70273.0,70245.0,0.00156]
[1773166800568,0.03,70273.0,70228.0,0.0002]
[1773166800569,0.03,70269.0,70228.0,0.0002]
[1773166800773,0.03,70257.0,70237.0,0.00156]
[1773166801021,0.03156,70257.0,70237.0,0.00156]
[1773166801317,0.03,70257.0,70237.0,0.00156]
[1773166801476,0.07116829,70256.0,70236.0,0.00562]
[1773166801674,0.07116829,70256.0,70228.0,0.0002]
[1773166801676,0.03,70249.0,70228.0,0.0002]
[1773166801882,0.03,70249.0,70226.0,0.00011192]
[1773166801883,0.03,70249.0,70226.0,0.00156]
[1773166801884,0.00156,70249.0,70226.0,0.00156]
[1773166802081,0.00156,70249.0,70207.0,0.0712179]
[1773166802447,0.03702443,70248.0,70214.0,0.00156]
[1773166802647,0.00156,70247.0,70214.0,0.00156]
[1773166802849,0.00156,70247.0,70213.0,0.0002]
[1773166803188,0.03156,70247.0,70213.0,0.0002]
[1773166803388,0.03156,70247.0,70214.0,0.00156]
[1773166803705,0.07117944,70245.0,70214.0,0.00156]
[1773166804103,0.07117944,70245.0,70214.0,0.07277035]
[1773166804311,0.03,70244.0,70214.0,0.10698463]
[1773166805146,0.03,70244.0,70210.0,0.07121086]
[1773166805147,0.03,70244.0,70200.0,0.03444428]
[1773166805349,0.03,70239.0,70209.0,0.00156]
[1773166805647,0.00156,70238.0,70209.0,0.00156]
[1773166805834,0.03,70236.0,70209.0,0.07277492]
[1773166806187,0.03,70236.0,70211.0,0.03421428]
[1773166806384,0.0711764,70248.0,70214.0,0.79136]
[1773166806588,0.00023,70250.0,70217.0,0.03421428]
[1773166806818,0.07116652,70258.0,70227.0,0.03421428]
[1773166807012,0.0711612,70263.0,70229.0,0.03421428]
[1773166807213,0.0767812,70264.0,70230.0,0.00156]
[1773166807214,0.00562,70264.0,70230.0,0.00156]
[1773166807414,0.17094349,70292.0,70234.0,1.695317]
[1773166807415,0.07137965,70275.0,70234.0,1.695317]
[1773166807745,0.03,70274.0,70241.0,0.03421428]
[1773166807949,0.03,70274.0,70243.0,0.655203]
[1773166808103,0.03,70274.0,70244.0,0.03421428]
[1773166808302,0.03,70274.0,70247.0,0.440333]
[1773166808507,0.03,70274.0,70251.0,0.310989]
[1773166808712,0.03,70274.0,70252.0,0.00156]
[1773166808918,0.03,70274.0,70242.0,0.61207]
[1773166808919,0.03,70274.0,70253.0,0.00156]
[1773166809116,0.03,70274.0,70254.0,0.00156]
[1773166809316,0.03,70274.0,70255.0,0.00156]
[1773166809530,0.03,70274.0,70256.0,0.00156]
[1773166809730,0.03,70274.0,70248.0,0.06707312]
[1773166809731,0.03,70272.0,70248.0,0.06707312]
[1773166809936,0.03,70272.0,70249.0,0.00156]
[1773166810134,0.03,70272.0,70248.0,0.06707312]
[1773166810342,0.03,70272.0,70250.0,0.00156]
[1773166811358,0.031,70272.0,70250.0,0.00156]
[1773166811561,0.03,70272.0,70250.0,0.00156]
[1773166811986,0.03,70272.0,70245.0,0.07117741]
[1773166811987,0.03,70270.0,70251.0,0.00156]
[1773166812187,0.03,70270.0,70236.0,0.03983428]
[1773166812418,0.03,70270.0,70236.0,0.00562]
[1773166812533,0.03,70270.0,70226.0,0.07119841]
[1773166812534,0.03702443,70265.0,70235.0,0.00156]
[1773166812738,0.03,70257.0,70230.0,0.00156]
[1773166812945,0.03,70257.0,70201.0,0.19522141]
[1773166812946,0.03,70239.0,70212.0,0.00156]
[1773166813154,0.00156,70238.0,70201.0,0.07122377]
[1773166813351,0.03562,70236.0,70204.0,0.00156]
[1773166813628,0.03,70229.0,70204.0,0.00156]
[1773166813841,0.03,70227.0,70202.0,0.00204]
[1773166814047,0.03,70211.0,70194.0,0.00156]
[1773166814195,0.03,70199.0,70182.0,0.00914161]
[1773166814575,0.03,70199.0,70182.0,0.08038408]
[1773166814802,0.03,70199.0,70182.0,0.08038446]
[1773166815002,0.00156,70210.0,70182.0,0.08038446]
[1773166815172,0.03,70209.0,70183.0,0.00156]
[1773166815658,0.03,70209.0,70184.0,0.00156]
[1773166815870,0.10121636,70209.0,70186.0,0.07123927]
[1773166816082,0.14157941,70238.0,70186.0,0.07123927]
[1773166816083,0.06999642,70240.0,70189.0,0.03421428]
[1773166816219,0.03,70234.0,70203.0,0.03421428]
[1773166816417,0.03,70234.0,70204.0,0.00156]
[1773166816760,0.07117539,70249.0,70209.0,0.03421428]
[1773166816933,0.00156,70248.0,70209.0,0.03421428]
[1773166817257,0.03,70248.0,70211.0,0.03421428]
[1773166817557,0.03,70248.0,70208.0,0.00562]
[1773166817558,0.03,70248.0,70212.0,0.00156]
[1773166817763,0.00156,70247.0,70213.0,0.00156]
[1773166818127,0.03,70245.0,70215.0,0.03421428]
[1773166818326,0.03,70245.0,70216.0,0.114]
[1773166818554,0.03,70245.0,70218.0,0.565449]
[1773166818748,0.07117389,70251.0,70215.0,0.00011264]
[1773166818749,0.07116728,70257.0,70226.0,0.778897]
[1773166819065,0.07116728,70257.0,70225.0,0.00023]
[1773166819289,0.03,70256.0,70227.0,0.00156]
[1773166819769,0.03,70254.0,70225.0,0.00023]
[1773166819926,0.03,70254.0,70228.0,0.00156]
[1773166820128,0.03,70252.0,70225.0,0.00023]
[1773166820354,0.00156,70251.0,70226.0,0.00156]
[1773166820754,0.07069133,70253.0,70226.0,0.00156]
[1773166820924,0.07678042,70264.0,70227.0,0.03127409]
[1773166820925,0.00562,70264.0,70227.0,0.03127409]
[1773166821128,0.00562,70264.0,70228.0,0.03127409]
[1773166821359,0.00562,70264.0,70225.0,0.07142946]
[1773166821360,0.03,70263.0,70232.0,1.078516]
[1773166821538,0.00022001,70271.0,70231.0,0.20315474]
[1773166821539,0.07115438,70270.0,70235.0,0.03127409]
[1773166821749,0.07115438,70270.0,70238.0,0.18509]
[1773166821986,0.07115438,70270.0,70239.0,0.03127409]
[1773166822140,0.07115438,70270.0,70240.0,0.07118451]
[1773166822510,0.03,70269.0,70241.0,0.00156]
[1773166822667,0.00156,70268.0,70238.0,0.00156]
[1773166822847,0.00156,70268.0,70238.0,0.00011264]
[1773166823048,0.00156,70268.0,70236.0,0.00562]
[1773166823253,0.03,70257.0,70230.0,0.00156]
[1773166823473,0.00178001,70256.0,70230.0,0.00156]
[1773166823695,0.00022001,70256.0,70230.0,0.00156]
[1773166823895,0.03,70257.0,70232.0,0.923731]
[1773166824075,0.00562,70264.0,70236.0,0.681065]
[1773166824076,0.00584001,70264.0,70236.0,0.681065]
[1773166824271,0.00584001,70264.0,70239.0,0.03127409]
[1773166824477,0.00023,70275.0,70242.0,2.14129]
[1773166824837,0.08812312,70285.0,70242.0,2.14129]
[1773166824838,0.01698397,70285.0,70253.0,0.03127409]
[1773166825031,0.01698397,70285.0,70256.0,1.273178]
[1773166825230,0.01698397,70285.0,70259.0,0.03127409]
[1773166825436,0.07113741,70287.0,70260.0,0.266764]
[1773166825587,0.07675228,70292.0,70258.0,0.20315474]
[1773166826558,0.03,70291.0,70260.0,0.03127409]
[1773166826742,0.03,70291.0,70261.0,0.154]
[1773166826945,0.03,70291.0,70262.0,0.18492]
[1773166827291,0.03,70291.0,70263.0,0.00156]
[1773166827815,0.03,70291.0,70264.0,0.03127409]
[1773166828019,0.03,70291.0,70265.0,0.00156]
[1773166828256,0.0711181,70306.0,70268.0,1.19673514]
[1773166828458,0.07111433,70310.0,70275.0,0.00023]
[1773166828820,0.19556418,70307.0,70275.0,0.00023]
[1773166828940,0.1959403,70307.0,70275.0,0.00023]
[1773166829154,0.03,70299.0,70264.0,0.00562]
[1773166829376,0.03,70287.0,70253.0,0.00156]
[1773166829573,0.00156,70286.0,70275.0,0.001]
[1773166830181,0.00562,70292.0,70275.0,0.001]
[1773166830361,0.03,70290.0,70275.0,0.001]
[1773166830563,0.001,70287.0,70276.0,0.00156]
[1773166830761,0.00562,70292.0,70275.0,0.07214857]
[1773166830962,0.00562,70292.0,70276.0,0.00156]
[1773166830963,0.07675209,70292.0,70276.0,0.00156]
[1773166831248,0.07675222,70292.0,70275.0,0.07114857]
[1773166831467,0.03,70291.0,70271.0,0.07115233]
[1773166831673,0.03,70291.0,70272.0,0.00156]
[1773166832303,0.03,70289.0,70273.0,0.07115108]
[1773166832665,0.03,70289.0,70272.0,0.07115168]
[1773166832922,0.03,70289.0,70274.0,0.00156]
[1773166833161,0.03,70289.0,70239.0,0.15996]
[1773166833367,0.03,70289.0,70264.0,0.00156]
[1773166833539,0.03,70289.0,70263.0,0.10243504]
[1773166833540,0.03,70289.0,70265.0,0.00156]
[1773166834039,0.03,70289.0,70263.0,0.10243504]
[1773166834201,0.03,70289.0,70266.0,0.00156]
[1773166834424,0.03,70287.0,70266.0,0.00156]
[1773166834626,0.03,70287.0,70264.0,0.00156]
[1773166835139,0.03,70287.0,70259.0,0.00156]
[1773166835733,0.03,70287.0,70260.0,0.00156]
[1773166835940,0.18269393,70289.0,70251.0,0.07117285]
[1773166835941,0.00037612,70307.0,70263.0,0.03127409]
[1773166836136,0.00037612,70307.0,70278.0,0.54696]
[1773166836336,0.03529626,70319.0,70282.0,0.03127409]
[1773166836535,0.00156,70333.0,70292.0,0.00562]
[1773166836741,0.07107812,70346.0,70301.0,0.03127409]
[1773166836963,0.03,70345.0,70304.0,1.239037]
[1773166837183,0.00562,70348.0,70311.0,3.134387]
[1773166837376,0.01073796,70374.0,70326.0,0.03127409]
[1773166837377,0.07105443,70369.0,70326.0,0.03127409]
[1773166837586,0.07105443,70369.0,70325.0,0.00023]
[1773166837587,0.07127886,70365.0,70329.0,0.133004]
[1773166837786,0.07127886,70365.0,70333.0,0.16173]
[1773166838100,0.07127886,70365.0,70327.0,0.00156]
[1773166838101,0.10127896,70365.0,70327.0,0.324297]
[1773166838422,0.10127896,70365.0,70320.0,0.00562]
[1773166838423,0.03,70347.0,70320.0,0.00562]
[1773166838591,0.03,70347.0,70300.0,0.00023]
[1773166838592,0.03,70347.0,70301.0,0.07112274]
[1773166838593,0.19452028,70340.0,70301.0,0.07112274]
[1773166838807,0.03,70339.0,70302.0,0.00156]
[1773166838954,0.00156,70338.0,70300.0,0.07135361]
[1773166839341,0.00156,70338.0,70301.0,0.00156]
[1773166839793,0.03,70338.0,70301.0,0.00167276]
[1773166839945,0.03,70338.0,70302.0,0.03127409]
[1773166840146,0.03,70338.0,70303.0,0.00156]
[1773166840351,0.03,70336.0,70301.0,0.00011276]
[1773166840555,0.07108836,70335.0,70303.0,0.07112072]
[1773166840782,0.04481974,70334.0,70301.0,0.07123348]
[1773166840994,0.04481974,70334.0,70304.0,0.00156]
[1773166841625,0.03,70333.0,70304.0,0.00156]
[1773166841834,0.03,70331.0,70301.0,0.07123521]
[1773166842067,0.03,70327.0,70302.0,0.00156]
[1773166842466,0.03,70325.0,70301.0,0.0712352]
[1773166842676,0.03,70325.0,70302.0,0.00156]
[1773166843082,0.03,70325.0,70303.0,0.00156]
[1773166843290,0.03,70325.0,70301.0,0.0712352]
[1773166843491,0.07109746,70329.0,70301.0,0.0712352]
[1773166843492,0.03,70346.0,70302.0,1.490065]
[1773166843735,0.03,70346.0,70303.0,0.179413]
[1773166844114,0.00562,70348.0,70310.0,0.19452028]
[1773166844330,0.07127825,70365.0,70326.0,1.593389]
[1773166844527,0.03,70357.0,70328.0,0.07109543]
[1773166844672,0.03,70355.0,70328.0,0.07109543]
[1773166845223,0.03,70349.0,70325.0,0.07132806]
[1773166845419,0.03,70349.0,70326.0,0.00156]
[1773166845621,0.0301127,70349.0,70327.0,0.00156]
[1773166845842,0.0301127,70349.0,70328.0,0.001]
[1773166846255,0.03,70348.0,70328.0,0.001]
[1773166846443,0.03,70348.0,70325.0,0.07132806]
[1773166846444,0.03,70346.0,70329.0,0.00156]
[1773166846773,0.03,70346.0,70307.0,0.07111604]
[1773166846774,0.03,70344.0,70314.0,0.07110859]
[1773166846921,0.07107825,70345.0,70292.0,0.00562]
[1773166846922,0.03,70339.0,70293.0,0.07113083]
[1773166847098,0.19452028,70340.0,70301.0,0.00156]
[1773166847099,0.03,70335.0,70301.0,0.00156]
[1773166847349,0.03,70331.0,70301.0,0.00156]
[1773166847961,0.03,70331.0,70302.0,0.00156]